bitfinex-derivatives/quotes_BTCF0:USTF0_20241003
["timestamp","ask_amount","ask_price","bid_price","bid_amount"]
[1727984728812,0.082132,60887.0,60885.0,0.19]
[1727984729014,0.082132,60887.0,60886.0,0.082133]
[1727984730822,0.086132,60887.0,60886.0,0.082133]
[1727984731023,0.086132,60887.0,60877.0,0.117443]
[1727984731024,0.082142,60879.0,60878.0,0.082143]
[1727984732320,0.03511173,60879.0,60875.0,0.19]
[1727984732618,0.077146,60876.0,60875.0,0.082146]
[1727984733238,0.082151,60873.0,60872.0,0.082151]
[1727984733526,0.073148,60875.0,60871.0,0.19]
[1727984733730,0.082151,60872.0,60871.0,0.272152]
[1727984734124,0.073148,60875.0,60874.0,0.082149]
[1727984735528,0.001,60876.0,60872.0,0.082151]
[1727984735529,0.082151,60873.0,60872.0,0.082151]
[1727984737027,0.086151,60873.0,60872.0,0.082151]
[1727984737227,0.091151,60873.0,60872.0,0.082151]
[1727984738030,0.009,60873.0,60872.0,0.082151]
[1727984738931,0.009,60873.0,60869.0,0.05612723]
[1727984739136,0.082154,60870.0,60869.0,0.13828223]
[1727984739732,0.082154,60870.0,60869.0,0.01942723]
[1727984739933,0.009,60873.0,60868.0,0.082157]
[1727984740237,0.009,60873.0,60869.0,0.082155]
[1727984740238,0.082155,60870.0,60869.0,0.082155]
[1727984740433,0.082155,60870.0,60869.0,0.13103988]
[1727984740656,0.082155,60870.0,60869.0,0.082155]
[1727984742534,0.086155,60870.0,60869.0,0.082155]
[1727984743941,0.086155,60870.0,60869.0,0.13103988]
[1727984744139,0.004,60870.0,60869.0,0.13103988]
[1727984745037,0.086154,60870.0,60866.0,0.16889065]
[1727984745345,0.082158,60867.0,60866.0,0.00246368]
[1727984746238,0.272157,60868.0,60856.0,0.082172]
[1727984746239,0.082167,60861.0,60856.0,0.082172]
[1727984746434,0.082174,60856.0,60855.0,0.082173]
[1727984746629,0.080174,60856.0,60855.0,0.082173]
[1727984747532,0.079174,60856.0,60855.0,0.082173]
[1727984748646,0.080174,60856.0,60855.0,0.084173]
[1727984749140,0.081174,60856.0,60855.0,0.086173]
[1727984750037,0.081174,60856.0,60855.0,0.004]
[1727984750941,0.002,60856.0,60855.0,0.276174]
[1727984751247,0.4711,60869.0,60855.0,1.369134]
[1727984751248,0.4353,60869.0,60855.0,1.369134]
[1727984751539,0.4353,60869.0,60868.0,0.272157]
[1727984751540,0.442956,60869.0,60868.0,0.272157]
[1727984751739,0.082152,60872.0,60871.0,0.082151]
[1727984751945,0.00246508,60873.0,60868.0,0.19]
[1727984752143,0.00246508,60873.0,60867.0,0.0359]
[1727984752144,0.00246508,60873.0,60872.0,0.272151]
[1727984753440,0.01246508,60873.0,60872.0,0.272151]
[1727984754238,0.09461508,60873.0,60872.0,0.082151]
[1727984754642,0.01246508,60873.0,60869.0,0.082155]
[1727984755005,0.082154,60870.0,60869.0,0.082155]
[1727984756146,0.087154,60870.0,60869.0,0.082155]
[1727984759042,0.005,60870.0,60869.0,0.082155]
[1727984761351,0.005,60870.0,60869.0,1.212495]
[1727984761558,0.005,60870.0,60869.0,0.119655]
[1727984761946,0.005,60870.0,60869.0,0.082155]
[1727984762652,0.005,60870.0,60867.0,0.01984769]
[1727984762653,0.082157,60868.0,60867.0,0.01984769]
[1727984762960,0.082157,60868.0,60866.0,0.442959]
[1727984762961,0.082158,60867.0,60866.0,0.00084]
[1727984763218,0.3658,60870.0,60864.0,0.082161]
[1727984763219,0.082161,60865.0,60864.0,0.082161]
[1727984763452,0.3658,60870.0,60867.0,0.082158]
[1727984763673,0.3658,60870.0,60864.0,0.19]
[1727984763674,0.005,60870.0,60869.0,0.272155]
[1727984764548,0.002,60870.0,60869.0,0.272155]
[1727984765260,0.00246508,60873.0,60872.0,0.082151]
[1727984766452,0.00746508,60873.0,60872.0,0.082151]
[1727984767452,0.01346508,60873.0,60872.0,0.083151]
[1727984767852,0.09561508,60873.0,60872.0,0.083151]
[1727984768064,0.01346508,60873.0,60872.0,0.083151]
[1727984768656,0.09561508,60873.0,60872.0,0.083151]
[1727984768860,0.01346508,60873.0,60872.0,0.083151]
[1727984769355,0.09561508,60873.0,60872.0,0.083151]
[1727984770560,0.24353478,60873.0,60872.0,0.083151]
[1727984770769,0.31902185,60873.0,60872.0,0.083151]
[1727984770957,0.36944316,60873.0,60872.0,0.083151]
[1727984771162,0.22152346,60873.0,60872.0,0.083151]
[1727984772660,0.2214446,60873.0,60872.0,0.001]
[1727984772865,1.41134507,60873.0,60872.0,0.001]
[1727984773252,1.41134507,60873.0,60864.0,0.3608]
[1727984773253,0.082161,60865.0,60864.0,0.3608]
[1727984773360,0.15756881,60865.0,60864.0,0.3608]
[1727984773596,0.082164,60863.0,60862.0,0.082164]
[1727984773957,0.082173,60857.0,60856.0,0.082171]
[1727984774154,0.082173,60857.0,60853.0,0.082176]
[1727984774155,0.082176,60854.0,60853.0,0.082176]
[1727984774456,0.15758381,60854.0,60853.0,0.082176]
[1727984774656,0.20601147,60854.0,60853.0,0.082176]
[1727984774965,0.20601147,60854.0,60853.0,0.29140271]
[1727984775164,0.20301147,60854.0,60853.0,0.29140271]
[1727984775468,0.20401147,60854.0,60853.0,0.30440271]
[1727984775858,0.20501147,60854.0,60853.0,0.30740271]
[1727984777160,0.27707044,60854.0,60853.0,0.30740271]
[1727984777368,0.35247825,60854.0,60853.0,0.30740271]
[1727984777560,0.079176,60854.0,60853.0,0.22522671]
[1727984778454,0.079176,60854.0,60853.0,0.03522671]
[1727984780858,0.079176,60854.0,60853.0,0.11740371]
[1727984781059,0.002,60854.0,60853.0,0.11740371]
[1727984781467,0.44296,60866.0,60859.0,0.082169]
[1727984781468,0.3608,60866.0,60859.0,0.082169]
[1727984781653,0.3608,60866.0,60865.0,0.19]
[1727984781962,0.3608,60874.0,60865.0,0.19]
[1727984781963,0.082158,60868.0,60867.0,0.082158]
[1727984782156,0.082158,60868.0,60867.0,0.272158]
[1727984782565,0.082153,60871.0,60870.0,0.082152]
[1727984782768,0.3608,60874.0,60867.0,0.19]
[1727984782769,0.082154,60870.0,60869.0,0.06524558]
[1727984783066,0.082154,60870.0,60869.0,0.14739291]
[1727984783441,0.082154,60870.0,60869.0,0.06523791]
[1727984783563,0.082157,60868.0,60867.0,0.06523791]
[1727984784061,0.082157,60868.0,60866.0,0.0352]
[1727984784365,0.082157,60868.0,60865.0,0.10103609]
[1727984784366,0.3608,60871.0,60865.0,0.10103609]
[1727984784570,0.275154,60870.0,60869.0,0.04893935]
[1727984784865,0.003,60870.0,60869.0,0.32109435]
[1727984785053,0.003,60870.0,60869.0,0.272155]
[1727984785253,0.3608,60871.0,60870.0,0.082154]
[1727984785464,0.39458592,60871.0,60870.0,0.082154]
[1727984786467,0.39758592,60871.0,60870.0,0.082154]
[1727984788368,0.40158592,60871.0,60870.0,0.082154]
[1727984790570,0.40158592,60871.0,60870.0,0.118854]
[1727984790777,0.082154,60870.0,60869.0,0.01983923]
[1727984790966,0.082155,60869.0,60868.0,0.082156]
[1727984791167,0.082155,60869.0,60865.0,0.01959134]
[1727984791168,0.082157,60868.0,60865.0,0.01959134]
[1727984791369,0.442961,60866.0,60864.0,0.082162]
[1727984791674,0.442961,60866.0,60845.0,0.19]
[1727984791675,0.082163,60864.0,60845.0,0.19]
[1727984791873,0.19,60857.0,60845.0,0.2253]
[1727984792074,0.03339808,60856.0,60849.0,0.082182]
[1727984792267,0.082179,60852.0,60845.0,0.2253]
[1727984792467,0.082179,60852.0,60850.0,0.04892265]
[1727984792661,0.082179,60852.0,60845.0,0.2253]
[1727984792662,0.19,60861.0,60851.0,0.04892265]
[1727984792875,0.082173,60856.0,60853.0,0.19]
[1727984793075,0.082173,60856.0,60855.0,0.082174]
[1727984793794,0.082173,60856.0,60853.0,0.19]
[1727984793795,0.082176,60854.0,60853.0,0.19]
[1727984793972,0.082176,60854.0,60852.0,0.082178]
[1727984794627,0.002,60856.0,60851.0,0.04892265]
[1727984794628,0.082178,60852.0,60851.0,0.01973195]
[1727984794765,0.082178,60852.0,60843.0,0.08219]
[1727984794766,0.5885,60853.0,60843.0,0.04892265]
[1727984794970,0.082189,60844.0,60843.0,0.082191]
[1727984795374,0.082189,60844.0,60843.0,0.10207395]
[1727984795564,0.070189,60844.0,60843.0,0.10207395]
[1727984796978,0.082185,60847.0,60845.0,0.082187]
[1727984797173,0.037,60851.0,60845.0,0.082187]
[1727984797370,0.082184,60848.0,60847.0,0.082185]
[1727984797780,0.3608,60853.0,60846.0,0.19]
[1727984797972,0.08218,60851.0,60846.0,0.19]
[1727984798167,0.08218,60851.0,60849.0,0.082182]
[1727984798471,0.3608,60853.0,60849.0,0.082182]
[1727984798472,0.082181,60850.0,60849.0,0.082182]
[1727984800771,0.003,60851.0,60850.0,0.082181]
[1727984801167,0.082179,60852.0,60850.0,0.082181]
[1727984801373,0.08218,60851.0,60850.0,0.082181]
[1727984803308,0.082183,60849.0,60846.0,0.19]
[1727984803470,0.082183,60849.0,60848.0,0.082184]
[1727984804479,0.089183,60849.0,60848.0,0.082184]
[1727984805081,0.011,60849.0,60848.0,0.082184]
[1727984807574,0.011,60849.0,60848.0,0.13110665]
[1727984809815,0.011,60849.0,60848.0,0.442984]
[1727984810186,0.0358,60862.0,60848.0,1.45384]
[1727984810383,0.0358,60862.0,60861.0,0.082166]
[1727984810579,0.117965,60862.0,60861.0,0.082166]
[1727984811481,0.124965,60862.0,60861.0,0.082166]
[1727984811689,0.138965,60862.0,60861.0,0.082166]
[1727984812187,0.136965,60862.0,60861.0,0.082166]
[1727984813808,0.142965,60862.0,60861.0,0.083166]
[1727984814287,0.02,60862.0,60861.0,0.083166]
[1727984814491,0.015,60862.0,60861.0,0.083166]
[1727984814991,0.00246508,60873.0,60872.0,0.082151]
[1727984816195,0.03636045,60873.0,60872.0,0.082151]
[1727984817192,0.05036045,60873.0,60872.0,0.083151]
[1727984817394,0.05736045,60873.0,60872.0,0.084151]
[1727984817594,0.04336045,60873.0,60872.0,0.083151]
[1727984817795,0.14746678,60892.0,60872.0,1.537791]
[1727984817999,0.3608,60896.0,60872.0,1.537791]
[1727984818000,0.0340157,60885.0,60884.0,0.272135]
[1727984818192,0.07423613,60885.0,60884.0,0.272135]
[1727984818391,0.0340157,60885.0,60884.0,0.272135]
[1727984818892,0.3608,60887.0,60884.0,0.19]
[1727984819097,0.3608,60887.0,60885.0,0.082134]
[1727984819098,0.04114459,60886.0,60885.0,0.082134]
[1727984819691,0.08136371,60886.0,60885.0,0.082134]
[1727984820002,0.27136371,60886.0,60884.0,0.01987516]
[1727984820199,0.16249871,60885.0,60884.0,0.001]
[1727984820390,0.57308371,60885.0,60876.0,0.082146]
[1727984820592,0.19,60880.0,60868.0,0.0373]
[1727984820803,0.19,60874.0,60873.0,0.08215]
[1727984821003,0.22414459,60874.0,60873.0,0.08215]
[1727984821300,0.082151,60872.0,60869.0,0.082155]
[1727984821506,0.11569604,60872.0,60869.0,0.082155]
[1727984821849,1.20853604,60872.0,60865.0,0.082161]
[1727984822002,1.48853604,60872.0,60865.0,0.082161]
[1727984822597,1.454991,60872.0,60865.0,0.082161]
[1727984822793,1.454991,60872.0,60866.0,0.082158]
[1727984822992,0.574991,60872.0,60869.0,0.082155]
[1727984823193,0.082151,60872.0,60869.0,0.082155]
[1727984823414,0.088151,60872.0,60871.0,0.00346414]
[1727984824110,0.086151,60872.0,60871.0,0.00246414]
[1727984824409,0.095151,60872.0,60871.0,0.00346414]
[1727984824702,0.091151,60872.0,60871.0,0.00346414]
[1727984824904,0.098151,60872.0,60871.0,0.00446414]
[1727984825712,0.096151,60872.0,60871.0,0.00446414]
[1727984826206,0.014,60872.0,60871.0,0.08661714]
[1727984826395,0.007,60872.0,60871.0,0.08561714]
[1727984826601,0.016,60872.0,60871.0,0.08661714]
[1727984827000,0.016,60872.0,60871.0,0.57945714]
[1727984827205,0.018,60872.0,60871.0,0.57945714]
[1727984827716,0.016,60872.0,60871.0,0.57945714]
[1727984827903,0.006,60872.0,60871.0,1.17945714]
[1727984828104,0.006,60872.0,60871.0,1.54025714]
[1727984828377,0.006,60872.0,60871.0,1.53925714]
[1727984828503,0.01,60872.0,60871.0,1.53925714]
[1727984829201,0.3608,60892.0,60871.0,1.53925714]
[1727984829509,0.3608,60892.0,60884.0,0.082135]
[1727984829713,0.082133,60887.0,60884.0,0.082135]
[1727984830509,0.082133,60887.0,60882.0,0.0342]
[1727984830702,0.082133,60887.0,60885.0,0.082134]
[1727984831450,0.102133,60887.0,60885.0,0.082134]
[1727984831712,0.096133,60887.0,60885.0,0.082134]
[1727984831948,0.096133,60887.0,60885.0,0.083134]
[1727984832714,0.082133,60886.0,60885.0,0.083134]
[1727984833021,0.082133,60886.0,60885.0,0.084134]
[1727984833918,0.003,60887.0,60886.0,0.082133]
[1727984834218,0.003,60887.0,60886.0,1.174853]
[1727984834529,0.3608,60892.0,60891.0,0.082126]
[1727984834720,0.3608,60892.0,60891.0,0.362126]
[1727984835220,0.00246414,60899.0,60898.0,0.082116]
[1727984836227,0.3608,60908.0,60898.0,0.574756]
[1727984836423,0.3608,60908.0,60905.0,0.082106]
[1727984836826,0.3608,60908.0,60903.0,0.28]
[1727984837033,0.3608,60908.0,60906.0,0.082104]
[1727984837718,0.12607199,60907.0,60906.0,0.082105]
[1727984838125,0.12607199,60907.0,60906.0,0.803705]
[1727984838394,0.21450921,60907.0,60906.0,1.536465]
[1727984838643,0.23780651,60907.0,60906.0,0.936465]
[1727984838842,0.04065897,60907.0,60906.0,0.935465]
[1727984839150,0.14675375,60908.0,60906.0,0.85436]
[1727984839444,0.16315886,60911.0,60910.0,0.0821]
[1727984839641,0.16315886,60913.0,60912.0,0.082097]
[1727984839943,0.25374226,60913.0,60912.0,0.362097]
[1727984840644,0.082098,60912.0,60910.0,0.0831]
[1727984840940,0.082098,60912.0,60911.0,0.082099]
[1727984840941,0.22874644,60912.0,60911.0,0.082099]
[1727984841140,0.31933204,60912.0,60911.0,0.082099]
[1727984841579,0.1726836,60912.0,60911.0,0.082099]
[1727984842540,0.12229597,60912.0,60911.0,0.082099]
[1727984842749,0.12229597,60912.0,60911.0,0.083099]
[1727984842750,0.09958589,60912.0,60911.0,0.083099]
[1727984843043,0.04919797,60912.0,60911.0,0.363099]
[1727984843743,0.04919797,60912.0,60911.0,0.083099]
[1727984843941,0.04919797,60912.0,60911.0,0.273099]
[1727984844137,0.05119797,60912.0,60911.0,0.274099]
[1727984844338,0.05119474,60912.0,60911.0,0.274099]
[1727984844850,0.011,60912.0,60911.0,0.274099]
[1727984845267,0.002,60912.0,60911.0,0.274099]
[1727984845342,0.14911163,60920.0,60919.0,0.082088]
[1727984845343,0.00246319,60920.0,60919.0,0.082088]
[1727984845552,0.00246319,60920.0,60919.0,0.272088]
[1727984845553,0.04265689,60920.0,60919.0,0.272088]
[1727984845749,0.00246319,60920.0,60919.0,0.272088]
[1727984847045,0.01146319,60920.0,60919.0,0.273088]
[1727984848579,0.09355019,60920.0,60919.0,0.274088]
[1727984848837,0.09355019,60920.0,60919.0,0.002]
[1727984850345,0.09355019,60920.0,60919.0,0.02116397]
[1727984850553,0.09355019,60920.0,60919.0,0.002]
[1727984851447,0.12765019,60920.0,60919.0,0.002]
[1727984852055,0.12765019,60920.0,60919.0,0.0213552]
[1727984852308,0.12765019,60920.0,60919.0,0.002]
[1727984854851,0.48845019,60920.0,60919.0,0.002]
[1727984855053,0.48845019,60920.0,60919.0,0.084088]
[1727984855250,0.18845019,60920.0,60919.0,0.084088]
[1727984856359,0.0685,60922.0,60919.0,0.084088]
[1727984856543,0.082087,60920.0,60919.0,0.084088]
[1727984857246,0.44288,60926.0,60925.0,0.08208]
[1727984858650,0.44288,60926.0,60924.0,0.19]
[1727984858651,0.3608,60926.0,60924.0,0.19]
[1727984858852,0.08208,60925.0,60924.0,0.19]
[1727984859053,0.08208,60925.0,60924.0,0.272081]
[1727984860049,0.08208,60925.0,60924.0,0.273081]
[1727984860458,0.08208,60925.0,60924.0,0.083081]
[1727984860643,0.08208,60925.0,60924.0,0.084081]
[1727984860847,0.07338269,60925.0,60920.0,0.03170031]
[1727984861149,0.20584416,60924.0,60923.0,0.082083]
[1727984862248,0.12376216,60924.0,60923.0,0.083083]
[1727984862670,0.12227685,60924.0,60923.0,0.001]
[1727984862875,0.12227685,60924.0,60923.0,0.084083]
[1727984864157,0.20435785,60924.0,60923.0,0.084083]
[1727984864359,0.20435785,60924.0,60923.0,0.002]
[1727984864970,0.20435785,60924.0,60923.0,0.084083]
[1727984865576,0.20435785,60924.0,60923.0,0.002]
[1727984866755,0.38462829,60924.0,60923.0,0.002]
[1727984867450,0.20435785,60924.0,60923.0,0.002]
[1727984867849,0.082081,60924.0,60923.0,0.084083]
[1727984870552,0.11378579,60924.0,60923.0,0.084083]
[1727984870847,0.11378574,60924.0,60923.0,0.084083]
[1727984871755,0.03170474,60924.0,60923.0,0.274083]
[1727984871948,0.03170194,60924.0,60923.0,0.274083]
[1727984872147,0.082068,60934.0,60933.0,0.082068]
[1727984872347,0.15395472,60934.0,60933.0,0.272068]
[1727984872558,0.03169975,60934.0,60933.0,0.272068]
[1727984873554,0.00246217,60940.0,60933.0,0.191]
[1727984873757,0.00246217,60940.0,60939.0,0.272061]
[1727984874154,0.3608,60943.0,60942.0,0.082057]
[1727984874354,0.082051,60947.0,60945.0,0.082053]
[1727984875067,0.3608,60949.0,60947.0,0.082049]
[1727984875364,0.082049,60948.0,60947.0,0.082049]
[1727984875967,0.17258756,60948.0,60946.0,0.19]
[1727984876159,0.09053856,60947.0,60946.0,0.19]
[1727984876360,0.09053856,60947.0,60946.0,0.272051]
[1727984876761,0.09153856,60947.0,60946.0,0.272051]
[1727984877254,0.17358856,60947.0,60946.0,0.273051]
[1727984878162,0.17358856,60947.0,60946.0,0.274051]
[1727984878561,0.17358856,60947.0,60946.0,0.084051]
[1727984878764,0.17358856,60947.0,60946.0,0.002]
[1727984879065,0.17358837,60947.0,60946.0,0.002]
[1727984880368,0.09153837,60947.0,60946.0,0.274052]
[1727984880553,0.05362095,60947.0,60946.0,0.766292]
[1727984880756,0.14088183,60958.0,60946.0,1.28424]
[1727984880757,0.14088283,60958.0,60946.0,1.28424]
[1727984880954,0.09052524,60957.0,60956.0,0.082038]
[1727984881772,0.09052524,60957.0,60956.0,0.272038]
[1727984882463,0.05884583,60958.0,60956.0,0.19]
[1727984882676,0.01922837,60977.0,60963.0,0.082029]
[1727984882916,0.01922837,60977.0,60976.0,0.272011]
[1727984883061,0.512299,60985.0,60979.0,0.082007]
[1727984883269,0.081996,60988.0,60983.0,0.19]
[1727984883459,0.3978,60992.0,60989.0,0.19]
[1727984883658,0.081998,60986.0,60985.0,0.19]
[1727984884166,0.3608,60986.0,60985.0,0.081999]
[1727984884467,0.3608,60992.0,60985.0,0.20935523]
[1727984884665,0.081991,60991.0,60985.0,0.20935523]
[1727984884860,0.081991,60991.0,60988.0,0.081995]
[1727984885271,0.081994,60990.0,60985.0,0.21035523]
[1727984885498,0.081994,60990.0,60987.0,0.081996]
[1727984886970,0.081994,60989.0,60988.0,0.081995]
[1727984887175,0.081995,60988.0,60987.0,0.001]
[1727984887863,0.081995,60988.0,60987.0,0.002]
[1727984889399,0.081995,60988.0,60987.0,0.001]
[1727984889773,0.081995,60988.0,60987.0,0.083996]
[1727984890979,0.17247249,60988.0,60981.0,0.11286284]
[1727984891175,0.14579943,60984.0,60983.0,0.082002]
[1727984891379,0.12214884,60984.0,60983.0,0.082002]
[1727984891970,0.07182232,60984.0,60983.0,0.082002]
[1727984892173,0.07182232,60984.0,60982.0,0.082003]
[1727984892378,0.07182232,60983.0,60981.0,0.11386284]
[1727984892592,0.07182235,60982.0,60981.0,0.11386284]
[1727984892775,0.12215399,60982.0,60981.0,0.01968239]
[1727984892978,0.082009,60978.0,60977.0,0.082009]
[1727984893283,0.07182235,60978.0,60977.0,0.082009]
[1727984893878,0.07182235,60978.0,60976.0,0.19]
[1727984894180,0.082011,60976.0,60975.0,0.38054671]
[1727984894381,0.15383335,60976.0,60975.0,0.38054671]
[1727984894586,0.22781043,60976.0,60975.0,0.38054671]
[1727984894780,0.34996548,60976.0,60975.0,0.38054671]
[1727984895176,0.26795448,60976.0,60975.0,0.46255971]
[1727984895483,0.12215505,60976.0,60975.0,0.46255971]
[1727984895871,0.07182235,60976.0,60975.0,0.46355971]
[1727984896080,0.0513327,60976.0,60975.0,0.46355971]
[1727984896269,0.12315505,60976.0,60975.0,0.46355971]
[1727984896788,0.12315521,60976.0,60975.0,0.46355971]
[1727984897283,0.26901009,60976.0,60975.0,0.46355971]
[1727984897671,0.12315521,60976.0,60975.0,0.46355971]
[1727984897875,0.14591713,60976.0,60975.0,0.46355971]
[1727984898082,0.14591713,60976.0,60975.0,1.55555971]
[1727984899679,0.14591713,60976.0,60975.0,0.95555971]
[1727984899976,0.14591713,60976.0,60975.0,0.46355971]
[1727984900179,0.22792813,60976.0,60975.0,0.38154671]
[1727984900588,0.22792813,60976.0,60975.0,0.02074671]
[1727984900780,0.22792813,60976.0,60975.0,0.001]
[1727984903889,0.22792813,60976.0,60975.0,0.083013]
[1727984904085,0.14591713,60976.0,60975.0,0.083013]
[1727984904990,0.14591713,60976.0,60975.0,0.13179975]
[1727984905692,0.14591713,60976.0,60975.0,0.083013]
[1727984906713,0.22792813,60976.0,60975.0,0.001]
[1727984906889,0.41792813,60976.0,60975.0,0.001]
[1727984907086,0.272011,60976.0,60975.0,0.001]
[1727984908092,0.764011,60976.0,60975.0,0.001]
[1727984908284,0.272011,60976.0,60975.0,0.001]
[1727984908488,0.764011,60976.0,60975.0,0.001]
[1727984908885,1.364011,60976.0,60975.0,0.001]
[1727984909088,1.364011,60976.0,60968.0,0.06515818]
[1727984909089,0.082018,60971.0,60970.0,0.04854381]
[1727984909386,0.082021,60969.0,60968.0,0.04854381]
[1727984909690,0.082022,60968.0,60967.0,0.01915089]
[1727984909784,0.19,60972.0,60965.0,0.1469953]
[1727984909985,0.082025,60966.0,60965.0,0.06496325]
[1727984910179,0.272025,60966.0,60965.0,0.06496325]
[1727984910485,0.082026,60965.0,60964.0,0.06496325]
[1727984910991,0.082026,60965.0,60964.0,0.14699025]
[1727984911384,0.082026,60965.0,60964.0,0.082027]
[1727984911689,0.082026,60965.0,60964.0,0.1470004]
[1727984911894,0.081026,60965.0,60964.0,0.1470004]
[1727984912288,0.081026,60965.0,60964.0,0.085027]
[1727984912487,0.081026,60965.0,60964.0,0.15001648]
[1727984912994,0.081026,60965.0,60964.0,0.085027]
[1727984913499,0.081026,60965.0,60964.0,0.091027]
[1727984913687,0.081026,60965.0,60964.0,0.009]
[1727984913991,0.081026,60965.0,60964.0,0.006]
[1727984914390,0.271026,60965.0,60964.0,0.006]
[1727984915092,0.082027,60964.0,60963.0,0.00246029]
[1727984915292,0.11371194,60964.0,60963.0,0.00246029]
[1727984916521,0.11571194,60964.0,60963.0,0.00246029]
[1727984916884,0.084027,60964.0,60963.0,0.00246029]
[1727984917195,0.084027,60964.0,60963.0,0.08448929]
[1727984917402,0.11571122,60964.0,60963.0,0.00246029]
[1727984918089,0.084027,60964.0,60963.0,0.00246029]
[1727984918398,0.084027,60964.0,60963.0,0.08448929]
[1727984919295,0.444827,60964.0,60963.0,0.08448929]
[1727984919493,0.47651171,60964.0,60963.0,0.00246029]
[1727984920793,0.47651377,60964.0,60963.0,0.00246029]
[1727984920987,0.444827,60964.0,60963.0,0.00246029]
[1727984921502,0.49212,60963.0,60953.0,0.06498948]
[1727984921702,0.19,60954.0,60944.0,0.06498948]
[1727984921994,0.49212,60963.0,60944.0,0.082053]
[1727984921995,0.19,60949.0,60944.0,0.082053]
[1727984922187,0.19,60949.0,60938.0,0.4424219]
[1727984922188,0.082054,60944.0,60942.0,0.06498948]
[1727984922385,0.082054,60944.0,60940.0,0.06498948]
[1727984922585,0.272058,60941.0,60940.0,0.06498948]
[1727984922797,0.19,60941.0,60938.0,0.06498948]
[1727984923147,0.082062,60938.0,60937.0,0.06498948]
[1727984923394,0.19,60941.0,60935.0,0.18325448]
[1727984923604,0.082065,60936.0,60935.0,0.13800762]
[1727984924999,0.082061,60941.0,60940.0,0.082059]
[1727984925186,0.082061,60940.0,60939.0,0.082059]
[1727984925387,0.082061,60940.0,60939.0,0.272059]
[1727984926289,0.086061,60940.0,60939.0,0.272059]
[1727984928288,0.082061,60940.0,60939.0,0.272059]
[1727984928489,0.086061,60940.0,60939.0,0.272059]
[1727984929001,0.084061,60940.0,60939.0,0.272059]
[1727984929192,0.084061,60940.0,60939.0,0.19]
[1727984929394,0.3608,60944.0,60936.0,0.082065]
[1727984929589,0.082064,60937.0,60936.0,0.082065]
[1727984930595,0.082065,60936.0,60935.0,0.05594262]
[1727984931897,0.082065,60936.0,60935.0,0.13800862]
[1727984933407,0.084065,60936.0,60935.0,0.13800862]
[1727984933722,0.082065,60936.0,60935.0,0.13800862]
[1727984933896,0.085065,60936.0,60935.0,0.13800862]
[1727984934496,0.003,60936.0,60935.0,0.13800862]
[1727984934995,0.25406678,60944.0,60935.0,0.27559568]
[1727984935304,0.25406678,60944.0,60937.0,0.082064]
[1727984935305,0.082061,60939.0,60937.0,0.082064]
[1727984935494,0.164124,60939.0,60938.0,0.20367115]
[1727984936200,0.082061,60939.0,60938.0,0.20367115]
[1727984936602,0.085061,60939.0,60938.0,0.20367115]
[1727984937197,0.25406678,60944.0,60938.0,0.12160915]
[1727984937396,0.25406678,60944.0,60943.0,0.082056]
[1727984937805,0.33612078,60944.0,60943.0,0.16316236]
[1727984938007,0.33612078,60944.0,60943.0,0.082056]
[1727984938211,0.33612078,60944.0,60943.0,0.16316236]
[1727984938702,0.33612078,60944.0,60943.0,0.082056]
[1727984939206,0.25406678,60944.0,60943.0,0.20293837]
[1727984939601,0.25806678,60944.0,60943.0,0.20292892]
[1727984940112,0.004,60944.0,60943.0,0.39292892]
[1727984940310,0.0352,60953.0,60944.0,0.082054]
[1727984940608,0.36326165,60957.0,60943.0,1.54703145]
[1727984940609,0.36326165,60957.0,60956.0,0.082038]
[1727984940799,0.00246165,60957.0,60956.0,0.082038]
[1727984941000,0.00246165,60957.0,60956.0,0.20291092]
[1727984941195,0.00246165,60957.0,60956.0,0.30021693]
[1727984941596,0.082031,60962.0,60961.0,0.08203]
[1727984942208,0.0356,60969.0,60963.0,0.082029]
[1727984942508,0.442819,60971.0,60970.0,0.082019]
[1727984942705,0.3608,60971.0,60970.0,0.082019]
[1727984942961,0.03167027,60978.0,60970.0,0.11957944]
[1727984943105,0.63526866,60979.0,60976.0,0.06481185]
[1727984943316,0.08201,60978.0,60976.0,0.06481185]
[1727984943506,0.08201,60977.0,60976.0,0.06481185]
[1727984943804,0.08201,60977.0,60972.0,0.08101481]
[1727984943805,0.082011,60976.0,60975.0,0.06481185]
[1727984944405,0.082011,60976.0,60963.0,0.191]
[1727984944406,0.082013,60975.0,60974.0,0.06481185]
[1727984944604,0.082013,60975.0,60973.0,0.14682685]
[1727984944805,0.082013,60975.0,60974.0,0.06481185]
[1727984945113,0.64726866,60979.0,60977.0,0.082009]
[1727984945307,0.56526066,60979.0,60977.0,0.082009]
[1727984945514,0.08201,60977.0,60976.0,0.001]
[1727984946417,0.08201,60977.0,60976.0,0.082011]
[1727984947407,0.08201,60977.0,60976.0,0.083011]
[1727984948501,0.09401,60977.0,60976.0,0.002]
[1727984950011,0.17602741,60977.0,60976.0,0.002]
[1727984950202,0.37831804,60977.0,60976.0,0.002]
[1727984950610,0.16584944,60977.0,60976.0,0.002]
[1727984951912,0.16585507,60977.0,60976.0,0.002]
[1727984952103,0.21619695,60977.0,60976.0,0.00142205]
[1727984952312,1.30819695,60977.0,60970.0,0.01958428]
[1727984952688,0.082031,60962.0,60961.0,0.08203]
[1727984952813,0.15387607,60962.0,60961.0,0.08203]
[1727984953218,0.07184507,60962.0,60961.0,0.27203]
[1727984953412,0.07184507,60962.0,60961.0,0.272031]
[1727984953703,0.03168138,60965.0,60961.0,0.272031]
[1727984954021,0.07184628,60964.0,60963.0,0.082029]
[1727984954513,0.07184628,60964.0,60962.0,0.08203]
[1727984954818,0.07184628,60963.0,60962.0,0.08203]
[1727984955017,0.082022,60968.0,60967.0,0.082023]
[1727984955312,0.27899709,60968.0,60967.0,0.082023]